bitfinex-derivatives/quotes_BNBF0:USTF0_20250413
["timestamp","ask_amount","ask_price","bid_price","bid_amount"]
[1744544089351,0.29568956,588.93,588.4,0.719]
[1744544089546,0.29478986,588.92,588.4,0.719]
[1744544089946,0.29478986,589.51,588.4,0.719]
[1744544090347,0.29478986,589.51,588.4,1.563]
[1744544090651,0.29478986,589.51,588.4,2.314]
[1744544090845,0.29569584,589.5,588.4,2.314]
[1744544091048,0.29478986,589.49,588.4,2.314]
[1744544092854,0.29478986,589.53,588.4,2.314]
[1744544093052,0.29478986,589.52,588.4,2.314]
[1744544093252,0.29478986,589.51,588.4,2.314]
[1744544093456,0.29478986,589.5,588.4,2.314]
[1744544093759,0.29478986,589.49,588.4,2.314]
[1744544093957,0.29478986,589.48,588.4,2.314]
[1744544094159,0.29478986,589.47,588.4,2.314]
[1744544094459,1.28663064,589.44,588.4,2.314]
[1744544094661,0.29478986,589.43,588.4,2.314]
[1744544094961,0.29478986,589.42,588.4,2.314]
[1744544095161,0.29478986,589.41,588.4,2.314]
[1744544095362,0.29478986,589.4,588.4,2.314]
[1744544095560,0.29478986,589.39,588.4,2.314]
[1744544095763,0.29478986,589.38,588.4,2.314]
[1744544095962,0.29478986,589.37,588.4,2.314]
[1744544096157,0.29478986,589.36,588.4,2.314]
[1744544096360,0.29478986,589.35,588.4,2.314]
[1744544096661,0.29478986,589.34,588.4,2.314]
[1744544096862,0.29478986,589.33,588.4,2.876]
[1744544097063,0.29478986,589.32,588.4,3.679]
[1744544097261,0.29478986,589.31,588.4,3.679]
[1744544097563,0.29478986,589.3,588.4,3.679]
[1744544097762,1.28663064,588.86,588.4,3.679]
[1744544098061,0.29478986,588.85,588.4,3.679]
[1744544098362,1.28663064,588.86,588.4,3.679]
[1744544098557,0.29489339,588.85,588.4,3.679]
[1744544099865,1.58152403,588.85,588.4,3.679]
[1744544100062,0.29489339,588.84,588.4,3.679]
[1744544102258,0.29489339,588.93,588.4,3.679]
[1744544102460,0.29489339,588.92,588.4,3.679]
[1744544102659,1.28663064,588.94,588.4,3.679]
[1744544102860,0.2949565,588.93,588.4,3.679]
[1744544103060,0.29577878,588.91,588.4,3.679]
[1744544103260,0.2949565,588.9,588.4,3.679]
[1744544104865,0.2949565,588.93,588.4,3.679]
[1744544105064,2.18905908,589.19,588.4,3.679]
[1744544105065,0.2949565,588.92,588.4,3.679]
[1744544105362,1.28663064,589.18,588.4,3.679]
[1744544105363,0.2949565,589.17,588.4,3.679]
[1744544105562,0.2949565,589.16,588.4,3.679]
[1744544105764,1.28663064,589.18,588.4,3.679]
[1744544105958,0.29573856,589.16,588.4,3.679]
[1744544106163,0.29496705,589.15,588.4,3.679]
[1744544107367,0.29573856,589.16,588.4,3.679]
[1744544107568,0.29496334,589.15,588.4,3.679]
[1744544110868,0.29496334,589.19,588.4,3.679]
[1744544111871,0.29571846,589.18,588.4,3.679]
[1744544112071,0.29496334,589.17,588.4,3.679]
[1744544113771,1.28663064,589.61,588.4,3.679]
[1744544113969,0.29570589,589.16,588.4,3.679]
[1744544114169,0.29507146,589.15,588.4,3.679]
[1744544114369,0.29507146,589.6,588.4,3.679]
[1744544114667,0.29507146,589.59,588.4,3.679]
[1744544114871,0.29507146,589.58,588.4,3.679]
[1744544115073,0.29507146,589.57,588.4,3.679]
[1744544115371,0.29565188,589.59,588.4,3.679]
[1744544115566,0.29507422,589.58,588.4,3.679]
[1744544115769,0.29507422,589.57,588.4,3.679]
[1744544115967,0.29565188,589.59,588.4,3.679]
[1744544115968,0.29507422,589.56,588.4,3.679]
[1744544116272,0.29507422,589.55,588.4,3.679]
[1744544116472,0.29507422,589.54,588.4,3.679]
[1744544116672,0.29507422,589.53,588.4,3.679]
[1744544116870,0.59072861,589.53,588.4,3.679]
[1744544117074,0.29505411,589.52,588.4,3.679]
[1744544117279,0.29505411,589.51,588.4,3.679]
[1744544117578,0.29505411,589.5,588.4,3.679]
[1744544117774,0.29505411,589.49,588.4,3.679]
[1744544117981,0.29505411,589.48,588.4,3.679]
[1744544118178,0.29505411,589.47,588.4,3.679]
[1744544118376,0.29505411,589.46,588.4,3.679]
[1744544118574,0.29565439,589.53,588.4,3.679]
[1744544118778,0.29504813,589.52,588.4,3.679]
[1744544118975,0.29504813,589.51,588.4,3.679]
[1744544119274,0.29504813,589.5,588.4,3.679]
[1744544119577,0.29504813,589.49,588.4,3.679]
[1744544119774,0.29504813,589.48,588.4,3.679]
[1744544119976,0.29504813,589.47,588.4,3.679]
[1744544120177,0.29504326,589.46,588.4,3.679]
[1744544120481,0.29504326,589.45,588.4,3.679]
[1744544120676,0.29504326,589.44,588.4,3.679]
[1744544120880,0.29504326,589.43,588.4,3.679]
[1744544121079,0.29504326,589.42,588.4,3.679]
[1744544121279,0.29504326,589.41,588.4,3.679]
[1744544121480,0.29504326,589.4,588.4,3.679]
[1744544121676,0.29539214,589.45,588.4,3.679]
[1744544121876,0.29504418,589.44,588.4,3.679]
[1744544122076,0.29504418,589.43,588.4,3.679]
[1744544122283,1.283911,589.17,588.4,3.679]
[1744544122483,0.29504418,589.16,588.4,3.679]
[1744544122779,0.29504418,589.15,588.4,3.679]
[1744544123080,1.62337159,589.17,588.4,3.679]
[1744544123081,0.29504418,589.16,588.4,3.679]
[1744544123380,0.29504418,589.15,588.4,3.679]
[1744544123685,0.29504418,589.14,588.4,3.679]
[1744544123881,0.29504418,589.13,588.4,3.679]
[1744544124184,0.29504418,589.12,588.4,3.679]
[1744544124385,0.29504418,589.15,588.4,3.679]
[1744544124580,0.29504418,589.14,588.4,3.679]
[1744544124781,0.29504418,589.15,588.4,4.482]
[1744544124986,0.29504839,589.14,588.4,4.482]
[1744544125486,0.29504839,589.13,588.4,4.482]
[1744544125686,0.29504839,589.15,588.4,4.482]
[1744544125888,0.29569835,589.13,588.4,4.482]
[1744544126186,0.29504839,589.12,588.4,4.482]
[1744544127393,1.57895939,589.12,588.4,4.482]
[1744544127689,0.29504839,589.11,588.4,4.482]
[1744544128090,1.283911,589.12,588.4,4.482]
[1744544128290,0.29491847,589.11,588.4,4.482]
[1744544129192,0.29491847,589.12,588.4,4.482]
[1744544129385,0.29491847,589.11,588.4,4.482]
[1744544129589,0.29491847,589.12,588.4,4.482]
[1744544129790,0.29491599,589.11,588.4,4.482]
[1744544129989,0.29491599,589.12,588.4,4.482]
[1744544131294,1.57960935,589.13,588.4,4.482]
[1744544131492,0.29494263,589.12,588.4,4.482]
[1744544133690,0.29494263,589.11,588.4,4.482]
[1744544133892,0.29494263,589.15,588.4,4.482]
[1744544134090,0.29494263,589.14,588.4,4.482]
[1744544134393,0.29494263,589.13,588.4,4.482]
[1744544134593,0.29494263,589.15,588.4,4.482]
[1744544134794,0.29494263,589.14,588.4,4.482]
[1744544134994,0.29494263,589.16,588.4,4.482]
[1744544135193,0.29494263,589.15,588.4,4.482]
[1744544135392,0.29494263,589.16,588.4,4.482]
[1744544137700,0.33946059,589.17,588.4,4.482]
[1744544137900,0.59058624,589.16,588.4,4.482]
[1744544138094,0.29490673,589.15,588.4,4.482]
[1744544139399,0.29490065,589.14,588.4,4.482]
[1744544139596,0.29490065,589.15,588.4,4.482]
[1744544140801,0.29490065,589.16,588.4,4.482]
[1744544140996,0.29490065,589.15,588.4,4.482]
[1744544144102,1.57959051,589.16,588.4,4.482]
[1744544144303,0.29486372,589.15,588.4,4.482]
[1744544145707,1.57959051,589.16,588.4,4.482]
[1744544145907,0.29478636,589.15,588.4,4.482]
[1744544150509,0.29567951,589.16,588.4,4.482]
[1744544150703,0.29467218,589.15,588.4,4.482]
[1744544152910,0.29467218,589.14,588.4,4.482]
[1744544153111,0.29467218,589.16,588.4,4.482]
[1744544157013,0.33946059,589.17,588.4,4.482]
[1744544157216,0.29470676,589.16,588.4,4.482]
[1744544158421,1.283911,589.12,588.4,4.482]
[1744544158813,0.59037208,589.11,588.4,4.482]
[1744544159112,0.2946687,589.1,588.4,4.482]
[1744544160216,0.29570338,589.11,588.4,4.482]
[1744544160412,0.29466411,589.1,588.4,4.482]
[1744544161315,1.283911,589.09,588.4,4.482]
[1744544161514,0.29466411,589.08,588.4,4.482]
[1744544162013,0.59037628,589.08,588.4,4.482]
[1744544162220,0.29466411,589.07,588.4,4.482]
[1744544162820,0.29571217,589.08,588.4,4.482]
[1744544163119,0.29479042,589.07,588.4,4.482]
[1744544164818,0.29479042,589.06,588.4,4.482]
[1744544165023,0.29570212,589.07,588.4,4.482]
[1744544165220,0.29479042,589.06,588.4,4.482]
[1744544166124,0.29570212,589.07,588.4,4.482]
[1744544166321,0.29478988,589.05,588.4,4.482]
[1744544166521,0.29478988,589.04,588.4,4.482]
[1744544166721,0.29478988,589.06,588.4,4.482]
[1744544166921,0.29478988,589.03,588.4,4.482]
[1744544167123,0.29478988,589.06,588.4,4.482]
[1744544167420,0.29478988,589.05,588.4,4.482]
[1744544167624,0.29478988,589.06,588.4,4.482]
[1744544167827,0.29480423,589.05,588.4,4.482]
[1744544168124,0.29480423,589.16,588.4,4.482]
[1744544168419,0.29480423,589.15,588.4,4.482]
[1744544168624,0.29480423,589.16,588.4,4.482]
[1744544168825,0.29480423,589.15,588.4,4.482]
[1744544169226,0.29480423,589.14,588.4,4.482]
[1744544169427,0.29486422,589.13,588.4,4.482]
[1744544169728,0.29486422,589.12,588.4,4.482]
[1744544169930,0.29486422,589.16,588.4,4.482]
[1744544170124,0.29486422,589.15,588.4,4.482]
[1744544170324,0.29486422,589.14,588.4,4.482]
[1744544170524,0.29486422,589.16,588.4,4.482]
[1744544170724,0.29486422,589.15,588.4,4.482]
[1744544170925,0.29486422,589.16,588.4,4.482]
[1744544171125,0.29486422,589.15,588.4,4.482]
[1744544171327,0.29486422,589.16,588.4,4.482]
[1744544171526,0.29486422,589.15,588.4,4.482]
[1744544171728,0.29486422,589.14,588.4,4.482]
[1744544171927,0.29486422,589.16,588.4,4.482]
[1744544172126,0.29486422,589.15,588.4,4.482]
[1744544172431,0.29486422,589.14,588.4,4.482]
[1744544172626,0.29486422,589.16,588.4,4.482]
[1744544177332,0.33946059,589.17,588.4,4.482]
[1744544177533,0.29491715,589.16,588.4,4.482]
[1744544178932,0.33946059,589.17,588.4,4.482]
[1744544179132,0.29489075,589.16,588.4,4.482]
[1744544183737,0.33946059,589.17,588.4,4.482]
[1744544183931,0.29493095,589.16,588.4,4.482]
[1744544195048,0.33946059,589.17,588.4,4.482]
[1744544195248,0.29462445,589.16,588.4,4.482]
[1744544198251,0.33946059,589.17,588.4,4.482]
[1744544198451,0.29461546,589.16,588.4,4.482]
[1744544200053,0.2946209,589.15,588.4,4.482]
[1744544200255,0.2946209,589.16,588.4,4.482]
[1744544200454,0.2946209,589.14,588.4,4.482]
[1744544200654,0.2946209,589.13,588.4,4.482]
[1744544201049,0.2946209,589.12,588.4,4.482]
[1744544201253,0.33946059,589.17,588.4,4.482]
[1744544201254,0.2946209,589.16,588.4,4.482]
[1744544201554,0.33946059,589.17,588.4,4.482]
[1744544201751,0.2946195,589.16,588.4,4.482]
[1744544203154,0.33946059,589.17,588.4,4.482]
[1744544203352,0.29460668,589.16,588.4,4.482]
[1744544204758,0.33946059,589.17,588.4,4.482]
[1744544204960,0.29462111,589.16,588.4,4.482]
[1744544209763,0.29464602,589.15,588.4,4.482]
[1744544209964,0.29464602,589.16,588.4,4.482]
[1744544214466,0.33946059,589.17,588.4,4.482]
[1744544214666,0.29466701,589.16,588.4,4.482]
[1744544217767,0.33946059,589.17,588.4,4.482]
[1744544217968,0.29460838,589.16,588.4,4.482]
[1744544222076,0.33946059,589.17,588.4,4.482]
[1744544222281,0.29461707,589.16,588.4,4.482]
[1744544223676,0.33946059,589.17,588.4,4.482]
[1744544223879,0.29462414,589.16,588.4,4.482]
[1744544226985,0.33946059,589.17,588.4,4.482]
[1744544227181,0.29462664,589.16,588.4,4.482]
[1744544228585,0.33946059,589.17,588.4,4.482]
[1744544228787,0.29462561,589.16,588.4,4.482]
[1744544230187,0.33946059,589.17,588.4,4.482]
[1744544230387,0.29463907,589.15,588.4,4.482]
[1744544230687,0.29463907,589.14,588.4,4.482]
[1744544230886,0.29463907,589.16,588.4,4.482]
[1744544231080,0.29463907,589.15,588.4,4.482]
[1744544231285,0.29463907,589.16,588.4,4.482]
[1744544231482,0.29463907,589.15,588.4,4.482]
[1744544231686,0.29463907,589.16,588.4,4.482]
[1744544231883,0.29463907,589.15,588.4,4.482]
[1744544232083,0.29463907,589.16,588.4,4.482]
[1744544232287,0.29463907,589.15,588.4,4.482]
[1744544232491,0.29463907,589.16,588.4,4.482]
[1744544232683,0.29463907,589.15,588.4,4.482]
[1744544232887,0.29463907,589.14,588.4,4.482]
[1744544233188,0.29463907,589.13,588.4,4.482]
[1744544233491,0.33946059,589.17,588.4,4.482]
[1744544233691,0.29464663,589.16,588.4,4.482]
[1744544238394,0.33946059,589.17,588.4,4.482]
[1744544238594,0.29465102,589.16,588.4,4.482]
[1744544239991,0.33946059,589.17,588.4,4.482]
[1744544240291,0.29464338,589.16,588.4,4.482]
[1744544243396,0.33946059,589.17,588.4,4.482]
[1744544243596,0.29467951,589.16,588.4,4.482]
[1744544244897,0.33946059,589.17,588.4,4.482]
[1744544245098,0.29468323,589.15,588.4,4.482]
[1744544245298,0.29468323,589.14,588.4,4.482]
[1744544245498,0.29468323,589.16,588.4,4.482]
[1744544254605,0.33946059,589.17,588.4,4.482]
[1744544254807,0.29487725,589.16,588.4,4.482]
[1744544262701,0.33946059,589.17,588.4,4.482]
[1744544263204,0.29490953,589.16,588.4,4.482]
[1744544264304,0.33946059,589.17,588.4,4.482]
[1744544264504,0.2948423,589.16,588.4,4.482]
[1744544267509,0.33946059,589.17,588.4,4.482]
[1744544267710,0.29480009,589.16,588.4,4.482]
[1744544274020,0.33946059,589.17,588.4,4.482]
[1744544274222,0.2947924,589.15,588.4,4.482]
[1744544274521,0.2947924,589.14,588.4,4.482]
[1744544274718,0.2947924,589.16,588.4,4.482]
[1744544274919,0.2947924,589.15,588.4,4.482]
[1744544275222,0.2947924,589.16,588.4,4.482]
[1744544275424,0.2947924,589.15,588.4,4.482]
[1744544275617,0.2947924,589.16,588.4,4.482]
[1744544275818,0.2947924,589.15,588.4,4.482]
[1744544276117,0.2947924,589.14,588.4,4.482]
[1744544276323,0.2947924,589.16,588.4,4.482]
[1744544276519,0.2947924,589.15,588.4,4.482]
[1744544276820,0.2947924,589.14,588.4,4.482]
[1744544277020,0.2947924,589.16,588.4,4.482]
[1744544277326,0.33946059,589.17,588.4,4.482]
[1744544277526,0.294789,589.16,588.4,4.482]
[1744544280531,0.33946059,589.17,588.4,4.482]
[1744544280732,0.29477779,589.16,588.4,4.482]
[1744544281733,0.33946059,589.17,588.4,4.482]
[1744544281930,0.29478932,589.16,588.4,4.482]
[1744544284131,0.33946059,589.17,588.4,4.482]
[1744544284335,0.29476826,589.16,588.4,4.482]
[1744544285135,0.33946059,589.17,588.4,4.482]
[1744544287037,0.2947735,589.16,588.4,4.482]
[1744544289742,0.33946059,589.17,588.4,4.482]
[1744544289939,0.29456843,589.16,588.4,4.482]
[1744544290238,0.33946059,589.17,588.4,4.482]
[1744544291245,0.29456552,589.16,588.4,4.482]
[1744544291446,0.29456935,589.15,588.4,4.482]
[1744544291644,0.29456935,589.16,588.4,4.482]
[1744544292944,0.33946059,589.17,588.4,4.482]
[1744544293145,0.29456298,589.16,588.4,4.482]
[1744544294545,0.33946059,589.17,588.4,4.482]
[1744544294743,0.29456296,589.16,588.4,4.482]
[1744544297848,0.33946059,589.17,588.4,4.482]
[1744544298148,0.29455931,589.16,588.4,4.482]
[1744544301145,0.29467292,589.15,588.4,4.482]
[1744544301446,0.29467292,589.14,588.4,4.482]
[1744544301642,0.29467292,589.16,588.4,4.482]
[1744544304049,0.29568956,589.15,588.4,4.482]
[1744544304251,0.29467292,589.14,588.4,4.482]
[1744544304448,0.29468034,589.13,588.4,4.482]
[1744544304645,0.29468034,589.14,588.4,4.482]
[1744544308950,0.29468034,589.16,588.4,4.482]
[1744544309152,0.59036236,589.15,588.4,4.482]
[1744544309346,0.29468034,589.14,588.4,4.482]
[1744544311954,0.29468034,589.16,588.4,4.482]
[1744544312149,0.59036236,589.15,588.4,4.482]
[1744544312349,0.29568202,589.15,588.4,4.482]
[1744544312553,0.29480359,589.14,588.4,4.482]
[1744544313458,0.29568202,589.15,588.4,4.482]
[1744544313759,0.29480576,589.14,588.4,4.482]
[1744544314955,0.29480576,589.16,588.4,4.482]
[1744544315757,0.33946059,589.17,588.4,4.482]
[1744544315957,0.29482888,589.15,588.4,4.482]
[1744544316157,0.29482888,589.14,588.4,4.482]
[1744544316352,0.29482888,589.16,588.4,4.482]
[1744544316558,0.29482888,589.15,588.4,4.482]
[1744544316753,0.29482888,589.16,588.4,4.482]
[1744544319059,0.33946059,589.17,588.4,4.482]
[1744544319261,0.29480379,589.16,588.4,4.482]
[1744544320655,0.33946059,589.17,588.4,4.482]
[1744544320861,0.2947959,589.16,588.4,4.482]
[1744544328958,0.29480357,589.15,588.4,4.482]
[1744544329162,0.29480357,589.14,588.4,4.482]
[1744544329359,0.29480357,589.16,588.4,4.482]
[1744544333168,1.57871457,589.16,588.4,4.482]
[1744544333367,0.29480357,589.15,588.4,4.482]
[1744544333765,1.283911,589.16,588.4,4.482]
[1744544333965,0.29476164,589.15,588.4,4.482]
[1744544336970,0.29569835,589.14,588.4,4.482]
[1744544337364,0.29471657,589.13,588.4,4.482]
[1744544339070,0.29471657,589.16,588.4,4.482]
[1744544339372,0.2956971,589.12,588.4,4.482]
[1744544339571,0.29471657,589.11,588.4,4.482]
[1744544340473,0.2956971,589.12,588.4,4.482]
[1744544340673,0.29472063,589.11,588.4,4.482]
[1744544341570,0.2956971,589.12,588.4,4.482]
[1744544341772,0.29471819,589.11,588.4,4.482]
[1744544341975,0.29471819,589.16,588.4,4.482]
[1744544343078,0.2956971,589.15,588.4,4.482]
[1744544343275,0.29471819,589.14,588.4,4.482]
[1744544348074,0.29471819,589.16,588.4,4.482]
[1744544348276,0.33946059,589.17,588.4,4.482]
[1744544348471,0.29472342,589.16,588.4,4.482]
[1744544349076,0.2956971,589.15,588.4,4.482]
[1744544349277,0.29472342,589.14,588.4,4.482]
[1744544349979,0.2956971,589.15,588.4,4.482]
[1744544350277,0.29472762,589.14,588.4,4.482]
[1744544354783,0.29472762,589.13,588.4,4.482]
[1744544354983,0.29472434,589.12,588.4,4.482]
[1744544355287,0.63421951,589.11,588.4,4.482]
[1744544355479,0.29472434,589.1,588.4,4.482]
[1744544356177,0.63422527,589.1,588.4,4.482]
[1744544356380,0.29472434,589.09,588.4,4.482]
[1744544356987,0.33951246,589.08,588.4,4.482]
[1744544357184,0.29472434,589.07,588.4,4.482]
[1744544357390,0.63424256,589.07,588.4,4.482]
[1744544357590,0.29472434,589.06,588.4,4.482]
[1744544357892,0.63424832,589.06,588.4,4.482]
[1744544358092,0.29472434,589.05,588.4,4.482]
[1744544358291,0.33953551,589.04,588.4,4.482]
[1744544358491,0.29472434,589.03,588.4,4.482]
[1744544358786,0.33954704,589.02,588.4,4.482]
[1744544358986,0.29472434,589.01,588.4,4.482]
[1744544359191,0.33955857,589.0,588.4,4.482]
[1744544359387,0.29472434,588.99,588.4,4.482]
[1744544359704,0.3395701,588.98,588.4,4.482]
[1744544359892,0.29472434,588.97,588.4,4.482]
[1744544360794,0.33958163,588.96,588.4,4.482]
[1744544361093,0.29472434,588.95,588.4,4.482]
[1744544361489,0.63431174,588.95,588.4,4.482]
[1744544361692,0.29472434,588.94,588.4,4.482]
[1744544362996,0.29578506,588.93,588.4,4.482]
[1744544363193,0.29472434,588.92,588.4,4.482]
[1744544366097,0.3395874,588.95,588.4,4.482]
[1744544366798,1.283911,589.14,588.4,4.482]
[1744544368600,0.29568077,589.17,588.4,4.482]
[1744544368795,1.283911,590.54,588.4,4.482]
[1744544368996,0.33873043,590.44,588.4,4.482]
[1744544369201,0.29471722,590.43,588.4,4.482]
[1744544369399,0.33879355,590.33,588.4,4.482]
[1744544369799,0.29471212,590.32,588.4,4.482]
[1744544370001,0.33881077,590.3,588.4,4.482]
[1744544370194,0.29471212,590.29,588.4,4.482]
[1744544370396,0.33882799,590.27,588.4,4.482]
[1744544370601,0.29471212,590.26,588.4,4.482]
[1744544370801,0.33884521,590.24,588.4,4.482]
[1744544371301,0.29470535,590.23,588.4,4.482]
[1744544371601,0.29551881,590.32,588.4,4.482]
[1744544371602,0.33886243,590.21,588.4,4.482]
[1744544371801,0.29470535,590.2,588.4,4.482]
[1744544372002,0.33887966,590.18,588.4,4.482]
[1744544372300,0.29470535,590.17,588.4,4.482]
[1744544372501,0.33889689,590.15,588.4,4.482]
[1744544372700,0.29470535,590.14,588.4,4.482]
[1744544372902,0.33891411,590.12,588.4,4.482]
[1744544373103,0.29473523,590.11,588.4,4.482]
[1744544373298,0.33893134,590.09,588.4,4.482]
[1744544373497,0.29473523,590.08,588.4,4.482]
[1744544373704,0.33893134,590.09,588.4,4.482]
[1744544373902,0.29473231,590.08,588.4,4.482]
[1744544374102,0.33894858,590.06,588.4,4.482]
[1744544374300,0.29473231,590.05,588.4,4.482]
[1744544374501,0.33896581,590.03,588.4,4.482]
[1744544374703,0.29473231,590.02,588.4,4.482]
[1744544374898,0.29473231,590.01,588.4,4.482]
[1744544375203,0.33896581,590.03,588.4,4.482]
[1744544375204,1.283911,589.2,588.4,4.482]
[1744544375403,0.29473231,589.19,588.4,4.482]
[1744544376103,1.283911,589.2,588.4,4.482]
[1744544376303,0.29471626,589.19,588.4,4.482]
[1744544377105,1.283911,589.14,588.4,4.482]
[1744544377306,0.29471626,589.13,588.4,4.482]
[1744544379006,1.283911,589.11,588.4,4.482]
[1744544379407,0.29471626,589.1,588.4,4.482]
[1744544382107,0.29571469,589.09,588.4,4.482]
[1744544382305,0.29471626,589.08,588.4,4.482]
[1744544384108,0.29471626,589.07,588.4,4.482]
[1744544384308,0.29471626,589.06,588.4,4.482]
[1744544384508,0.29471626,589.26,588.4,4.482]
[1744544384706,0.29471626,589.25,588.4,4.482]
[1744544385004,0.29471626,589.24,588.4,4.482]
[1744544387413,1.283911,589.25,588.4,4.482]
[1744544387607,0.29472101,589.24,588.4,4.482]
[1744544388110,0.29567197,589.23,588.4,4.482]
[1744544388311,0.29472101,589.22,588.4,4.482]
[1744544388510,0.29472101,589.21,588.4,4.482]
[1744544388710,0.29472101,589.2,588.4,4.482]
[1744544388908,0.29472101,589.19,588.4,4.482]
[1744544389109,0.29472101,589.22,588.4,4.482]
[1744544389310,0.29472101,589.21,588.4,4.482]
[1744544389508,0.29472101,589.2,588.4,4.482]
[1744544389711,0.29472101,589.19,588.4,4.482]
[1744544390007,0.29472101,589.22,588.4,4.482]
[1744544390206,0.29472101,589.21,588.4,4.482]
[1744544390410,0.29472101,589.2,588.4,4.482]
[1744544390707,1.283911,589.19,588.4,4.482]
[1744544390906,0.29466704,589.18,588.4,4.482]
[1744544393211,0.29466704,589.28,588.4,4.482]
[1744544393511,0.29466704,589.27,588.4,4.482]
[1744544393815,0.29466704,589.28,588.4,4.482]
[1744544394017,0.29566946,589.26,588.4,4.482]
[1744544394412,0.29471822,589.25,588.4,4.482]
[1744544395615,0.29471728,589.24,588.4,4.482]
[1744544395814,0.33942027,589.24,588.4,4.482]
[1744544396016,0.29471728,589.23,588.4,4.482]
[1744544397017,0.29567574,589.22,588.4,4.482]
[1744544397219,0.29471728,589.21,588.4,4.482]
[1744544398915,0.29471728,589.2,588.4,4.482]
[1744544399119,0.29471728,589.23,588.4,4.482]
[1744544399320,0.29567574,589.2,588.4,4.482]
[1744544399521,0.29471728,589.19,588.4,4.482]
[1744544401523,0.29567574,589.2,588.4,4.482]
[1744544401822,0.29473489,589.19,588.4,4.482]
[1744544402524,1.283911,589.15,588.4,4.482]
[1744544402823,0.29473489,589.14,588.4,4.482]
[1744544403125,1.283911,589.15,588.4,4.482]
[1744544403318,0.29475674,589.14,588.4,4.482]
[1744544404627,1.57866774,589.14,588.4,4.482]
[1744544404825,0.29475674,589.13,588.4,4.482]
[1744544406423,1.5795993,589.14,588.4,4.482]
[1744544406624,1.57866282,589.13,588.4,4.482]
[1744544406828,0.29475182,589.12,588.4,4.482]
[1744544407431,0.29475898,589.11,588.4,4.482]
[1744544407636,0.29475898,589.12,588.4,4.482]
[1744544407830,0.29475898,589.11,588.4,4.482]
[1744544408128,0.29475898,589.1,588.4,4.482]
[1744544408330,0.29475898,589.12,588.4,4.482]
[1744544408523,0.29475898,589.11,588.4,4.482]
[1744544408721,0.29475898,589.12,588.4,4.482]
[1744544409528,0.29569207,589.13,588.4,4.482]
[1744544409828,0.29473859,589.12,588.4,4.482]
[1744544411028,1.283911,589.1,588.4,4.482]
[1744544411227,0.29474161,589.09,588.4,4.482]
[1744544412730,1.283911,589.1,588.4,4.482]
[1744544412925,0.29472939,589.09,588.4,4.482]
[1744544414330,1.283911,589.15,588.4,4.482]
[1744544414530,0.29472963,589.14,588.4,4.482]
[1744544415032,0.29570715,589.13,588.4,4.482]
[1744544415238,0.29472963,589.12,588.4,4.482]
[1744544416641,0.63421903,589.12,588.4,4.482]
[1744544416842,0.29472963,589.11,588.4,4.482]
[1744544418140,0.29572097,589.1,588.4,4.482]
[1744544418438,0.29472963,589.09,588.4,4.482]
[1744544419240,0.29572097,589.1,588.4,4.482]
[1744544419440,0.29491515,589.09,588.4,4.482]
[1744544419743,1.283911,589.05,588.4,4.482]
[1744544419940,0.29491515,589.04,588.4,4.482]
[1744544421844,0.29491515,589.11,588.4,4.482]
[1744544424539,0.29500547,589.1,588.4,4.482]
[1744544424742,0.29500547,589.11,588.4,4.482]
[1744544424940,0.29500547,589.1,588.4,4.482]
[1744544425141,0.29500547,589.11,588.4,4.482]
[1744544425348,0.29500547,589.1,588.4,4.482]